fUST/lending_fUST_20260509
["ID","MTS","AMOUNT","RATE_DAILY","PERIOD"]
[421886548,1778290232000,-858.65893668,0.00011522,2]
[421886544,1778290232000,-1702.96884126,0.00011407,2]
[421886569,1778290232000,-160.0,0.00013845,2]
[421886550,1778290232000,-3747.98465406,0.00011638,2]
[421886571,1778290232000,-161.58879827,0.00013845,2]
[421886558,1778290232000,-676.893417,0.00013699,2]
[421886577,1778290232000,-516.62915762,0.00013973,2]
[421886573,1778290232000,-160.0,0.00013845,2]
[421886579,1778290232000,-515.6773213,0.00013973,2]
[421886581,1778290232000,-13.28042108,0.00013973,2]
[421886583,1778290232000,-150.43876903,0.00013973,2]
[421886585,1778290232000,-5012.93922749,0.00014365,2]
[421886575,1778290232000,-218.0,0.00013918,3]
[421886587,1778290232000,-160.0,0.000147,3]
[421886595,1778290232000,-442.0,0.00015202,2]
[421886591,1778290232000,-204.04309199,0.00014903,7]
[421886593,1778290232000,-199.408342,0.00015068,2]
[421886597,1778290232000,-185.0,0.00015202,2]
[421886589,1778290232000,-179.85227617,0.000147,5]
[421886599,1778290232000,-178.63182471,0.0001525,2]
[421886769,1778290240000,-2639.17416348,0.0001525,2]
[421886768,1778290240000,-1558.61117006,0.0001525,2]
[421886773,1778290240000,-500.0,0.00016052,2]
[421886771,1778290240000,-500.0,0.00016052,2]
[421886772,1778290240000,-500.0,0.00016052,2]
[421886770,1778290240000,-287.36694439,0.00015816,2]
[421886785,1778290241000,-500.0,0.00016052,2]
[421886797,1778290241000,-763.66,0.00016175,2]
[421886799,1778290241000,-500.0,0.00016175,2]
[421886800,1778290241000,-500.0,0.00016175,2]
[421886795,1778290241000,-500.0,0.00016175,2]
[421886794,1778290241000,-500.0,0.00016175,2]
[421886792,1778290241000,-500.0,0.00016175,2]
[421886787,1778290241000,-287.019,0.00016077,2]
[421886788,1778290241000,-500.0,0.00016175,2]
[421886786,1778290241000,-501.98827119,0.00016052,2]
[421886784,1778290241000,-500.0,0.00016052,2]
[421886776,1778290241000,-500.0,0.00016052,2]
[421886791,1778290241000,-551.09344427,0.00016175,2]
[421886790,1778290241000,-500.0,0.00016175,2]
[421886782,1778290241000,-500.0,0.00016052,2]
[421886781,1778290241000,-500.0,0.00016052,2]
[421886779,1778290241000,-500.0,0.00016052,2]
[421886780,1778290241000,-500.0,0.00016052,2]
[421886777,1778290241000,-500.0,0.00016052,2]
[421886778,1778290241000,-500.0,0.00016052,2]
[421886774,1778290241000,-500.0,0.00016052,2]
[421886775,1778290241000,-500.0,0.00016052,2]
[421886798,1778290241000,-500.0,0.00016175,2]
[421886783,1778290241000,-500.0,0.00016052,2]
[421886796,1778290241000,-500.0,0.00016175,2]
[421886793,1778290241000,-500.0,0.00016175,2]
[421886801,1778290241000,-500.0,0.00016176,2]
[421886826,1778290241000,-1856.86616958,0.00016298,2]
[421886825,1778290241000,-27469.92636343,0.00016298,2]
[421886824,1778290241000,-14894.87376804,0.00016298,2]
[421886803,1778290241000,-1021.94999486,0.00016198,2]
[421886823,1778290241000,-916.04358998,0.00016297,2]
[421886820,1778290241000,-916.04358998,0.00016297,2]
[421886821,1778290241000,-916.04358998,0.00016297,2]
[421886819,1778290241000,-916.04358998,0.00016297,2]
[421886813,1778290241000,-916.04358998,0.00016297,2]
[421886817,1778290241000,-916.04358998,0.00016297,2]
[421886815,1778290241000,-916.04358998,0.00016297,2]
[421886816,1778290241000,-916.04358998,0.00016297,2]
[421886822,1778290241000,-916.04358998,0.00016297,2]
[421886811,1778290241000,-916.04358998,0.00016297,2]
[421886809,1778290241000,-916.04358998,0.00016297,2]
[421886812,1778290241000,-916.04358998,0.00016297,2]
[421886818,1778290241000,-916.04358998,0.00016297,2]
[421886810,1778290241000,-916.04358998,0.00016297,2]
[421886827,1778290241000,-811.51114452,0.00016298,2]
[421886806,1778290241000,-916.04358998,0.00016297,2]
[421886807,1778290241000,-916.04358998,0.00016297,2]
[421886808,1778290241000,-916.04358998,0.00016297,2]
[421886805,1778290241000,-916.04358998,0.00016297,2]
[421886802,1778290241000,-500.0,0.00016176,2]
[421886804,1778290241000,-180.13128319,0.00016297,2]
[421886814,1778290241000,-916.04358998,0.00016297,2]
[421886835,1778290243000,-904.41156952,0.00016298,2]
[421886838,1778290243000,-27518.18721161,0.00016298,2]
[421886837,1778290243000,-13998.86834645,0.00016298,2]
[421886839,1778290243000,-3215.89712044,0.00016298,2]
[421886840,1778290243000,-500.0,0.00016298,2]
[421886842,1778290243000,-766.70295673,0.00016298,2]
[421886841,1778290243000,-2292.89147835,0.00016298,2]
[421886851,1778290246000,-18059.32959368,0.00016298,2]
[421886849,1778290246000,-10044.65914692,0.00016298,2]
[421886850,1778290246000,-9320.74185047,0.00016298,2]
[421886848,1778290246000,-29822.81350856,0.00016298,2]
[421886853,1778290417000,586.72571959,0.00017861,120]
[421886855,1778290418000,586.72571959,0.00017958,120]
[421886854,1778290418000,586.72571959,0.00017909,120]
[421886858,1778290469000,166.6709283,0.00017435,120]
[421886859,1778290709000,155.46857553,0.0001727,120]
[421886877,1778291431000,-1585.60621637,0.0001208,2]
[421886879,1778291431000,-180.86933223,0.00012202,2]
[421886887,1778291431000,-218.07529989,0.00013308,2]
[421886881,1778291431000,-3868.80032699,0.00012363,2]
[421886883,1778291431000,-211.22925026,0.00012678,2]
[421886885,1778291431000,-159.2443502,0.00012848,2]
[421886912,1778291432000,-500.0,0.00014636,2]
[421886914,1778291432000,-470.42338107,0.00014636,2]
[421886901,1778291432000,-1097.51464851,0.00013308,2]
[421886916,1778291432000,-500.0,0.00014636,2]
[421886918,1778291432000,-500.0,0.00014636,2]
[421886911,1778291432000,-300.0,0.00014635,2]
[421886907,1778291432000,-1000.0,0.00013699,2]
[421886920,1778291432000,-500.0,0.00014636,2]
[421886905,1778291432000,-1000.0,0.00013699,2]
[421886922,1778291432000,-82.97652885,0.00014636,2]
[421886909,1778291432000,-160.0,0.00014325,2]
[421886903,1778291432000,-215.25849304,0.0001337,3]
[421887417,1778291438000,-502.78726468,0.00014637,2]
[421887422,1778291438000,-632.03526833,0.00014637,2]
[421887413,1778291438000,-502.13209579,0.00014637,2]
[421887416,1778291438000,-500.0,0.00014637,2]
[421887414,1778291438000,-502.0387959,0.00014637,2]
[421887415,1778291438000,-501.57159136,0.00014637,2]
[421887428,1778291438000,-502.48235004,0.00014637,2]
[421887434,1778291438000,-504.8275535,0.00014637,2]
[421887427,1778291438000,-502.87144331,0.00014637,2]
[421887426,1778291438000,-501.7437154,0.00014637,2]
[421887423,1778291438000,-502.40307376,0.00014637,2]
[421887425,1778291438000,-501.4793717,0.00014637,2]
[421887412,1778291438000,-500.4378695,0.00014637,2]
[421887430,1778291438000,-501.16828903,0.00014637,2]
[421887418,1778291438000,-501.71970799,0.00014637,2]
[421887406,1778291438000,-503.12263352,0.00014637,2]
[421887419,1778291438000,-501.92102359,0.00014637,2]
[421887421,1778291438000,-503.86378683,0.00014637,2]
[421887411,1778291438000,-504.29310167,0.00014637,2]
[421887409,1778291438000,-500.0,0.00014637,2]
[421887404,1778291438000,-501.62318941,0.00014637,2]
[421887408,1778291438000,-501.07797076,0.00014637,2]
[421887407,1778291438000,-503.40071841,0.00014637,2]
[421887400,1778291438000,-350.43474222,0.00012999,2]
[421887402,1778291438000,-285.13750087,0.00014636,2]
[421887401,1778291438000,-558.66564131,0.00014636,2]
[421887405,1778291438000,-501.75733582,0.00014637,2]
[421887403,1778291438000,-505.43327881,0.00014637,2]
[421887410,1778291438000,-501.37742406,0.00014637,2]
[421887399,1778291438000,-5000.0,0.00011959,2]
[421887420,1778291438000,-501.38166583,0.00014637,2]
[421887429,1778291438000,-500.0,0.00014637,2]
[421887424,1778291438000,-502.47435324,0.00014637,2]
[421887433,1778291438000,-503.24618579,0.00014637,2]
[421887432,1778291438000,-502.37563062,0.00014637,2]
[421887463,1778291438000,-500.0,0.00014637,2]
[421887464,1778291438000,-501.3112295,0.00014637,2]
[421887460,1778291438000,-501.71256,0.00014637,2]
[421887462,1778291438000,-492.95762008,0.00014637,2]
[421887461,1778291438000,-500.0,0.00014637,2]
[421887458,1778291438000,-500.0,0.00014637,2]
[421887457,1778291438000,-500.0,0.00014637,2]
[421887455,1778291438000,-500.0,0.00014637,2]
[421887452,1778291438000,-505.07240608,0.00014637,2]
[421887453,1778291438000,-587.55346925,0.00014637,2]
[421887451,1778291438000,-500.0,0.00014637,2]
[421887449,1778291438000,-501.94764436,0.00014637,2]
[421887454,1778291438000,-502.36830416,0.00014637,2]
[421887456,1778291438000,-502.77364242,0.00014637,2]
[421887459,1778291438000,-206.81986103,0.00014637,2]
[421887450,1778291438000,-503.05070669,0.00014637,2]
[421887431,1778291438000,-501.97360153,0.00014637,2]
[421887448,1778291438000,-500.0,0.00014637,2]
[421887436,1778291438000,-500.0,0.00014637,2]
[421887445,1778291438000,-500.0,0.00014637,2]
[421887446,1778291438000,-561.16004551,0.00014637,2]
[421887435,1778291438000,-500.89335999,0.00014637,2]
[421887437,1778291438000,-501.93341276,0.00014637,2]
[421887444,1778291438000,-502.90229819,0.00014637,2]
[421887439,1778291438000,-500.0,0.00014637,2]
[421887440,1778291438000,-501.30704676,0.00014637,2]
[421887443,1778291438000,-501.88500872,0.00014637,2]
[421887442,1778291438000,-502.93498872,0.00014637,2]
[421887441,1778291438000,-501.70977077,0.00014637,2]
[421887447,1778291438000,-502.21102537,0.00014637,2]
[421887438,1778291438000,-503.00259417,0.00014637,2]
[421887486,1778291439000,-300.0,0.00014651,2]
[421887497,1778291439000,-249.2505153,0.00014678,2]
[421887488,1778291439000,-300.0,0.00014651,2]
[421887490,1778291439000,-300.0,0.00014651,2]
[421887495,1778291439000,-300.0,0.00014651,2]
[421887489,1778291439000,-300.0,0.00014651,2]
[421887491,1778291439000,-300.0,0.00014651,2]
[421887496,1778291439000,-300.0,0.00014651,2]
[421887515,1778291439000,-500.0,0.00014912,2]
[421887498,1778291439000,-500.0,0.0001491,2]
[421887501,1778291439000,-500.0,0.0001491,2]
[421887500,1778291439000,-301.16809953,0.0001491,2]
[421887504,1778291439000,-500.0,0.00014911,2]
[421887502,1778291439000,-478.72412997,0.00014911,2]
[421887503,1778291439000,-197.44430244,0.00014911,2]
[421887518,1778291439000,-500.0,0.00014912,2]
[421887516,1778291439000,-500.0,0.00014912,2]
[421887494,1778291439000,-300.0,0.00014651,2]
[421887499,1778291439000,-500.0,0.0001491,2]
[421887493,1778291439000,-300.0,0.00014651,2]
[421887469,1778291439000,-500.0,0.00014638,2]
[421887482,1778291439000,-300.0,0.00014651,2]
[421887470,1778291439000,-500.0,0.0001465,2]
[421887471,1778291439000,-503.9988665,0.0001465,2]
[421887466,1778291439000,-500.0,0.00014638,2]
[421887467,1778291439000,-500.0,0.00014638,2]
[421887465,1778291439000,-501.75262258,0.00014637,2]
[421887472,1778291439000,-195.31730544,0.0001465,2]
[421887505,1778291439000,-382.660493,0.00014911,2]
[421887468,1778291439000,-501.27021045,0.00014638,2]
[421887474,1778291439000,-210.73411103,0.0001465,2]
[421887487,1778291439000,-300.0,0.00014651,2]
[421887484,1778291439000,-300.0,0.00014651,2]
[421887473,1778291439000,-289.26588897,0.0001465,2]
[421887480,1778291439000,-50.62636816,0.0001465,2]
[421887479,1778291439000,-345.08659543,0.0001465,2]
[421887483,1778291439000,-300.0,0.00014651,2]
[421887476,1778291439000,-500.0,0.0001465,2]
[421887477,1778291439000,-817.42,0.0001465,2]
[421887485,1778291439000,-300.0,0.00014651,2]
[421887481,1778291439000,-449.37363184,0.0001465,2]
[421887478,1778291439000,-500.0,0.0001465,2]
[421887475,1778291439000,-500.0,0.0001465,2]
[421887509,1778291439000,-500.0,0.00014911,2]
[421887492,1778291439000,-300.0,0.00014651,2]
[421887506,1778291439000,-367.38863548,0.00014911,2]
[421887532,1778291439000,-500.0,0.00015184,2]
[421887537,1778291439000,-500.0,0.00015185,2]
[421887544,1778291439000,-500.0,0.00015186,2]
[421887535,1778291439000,-155.32298625,0.00015185,2]
[421887540,1778291439000,-500.0,0.00015185,2]
[421887541,1778291439000,-500.0,0.00015185,2]
[421887538,1778291439000,-500.0,0.00015185,2]
[421887546,1778291439000,-150.134,0.00015188,2]
[421887545,1778291439000,-150.049,0.00015188,2]
[421887547,1778291439000,-500.0,0.00015198,2]
[421887556,1778291439000,-1754.00211669,0.0001536,2]
[421887548,1778291439000,-500.0,0.00015198,2]
[421887549,1778291439000,-500.0,0.00015198,2]
[421887550,1778291439000,-500.0,0.00015198,2]
[421887551,1778291439000,-500.0,0.00015198,2]
[421887555,1778291439000,-32568.97018402,0.0001536,2]
[421887553,1778291439000,-12012.66438772,0.0001536,2]
[421887552,1778291439000,-160.92900722,0.00015359,2]
[421887554,1778291439000,-424.1750197,0.0001536,2]
[421887534,1778291439000,-620.96217482,0.00015185,2]
[421887536,1778291439000,-500.0,0.00015185,2]
[421887539,1778291439000,-500.0,0.00015185,2]
[421887542,1778291439000,-500.0,0.00015186,2]
[421887507,1778291439000,-500.0,0.00014911,2]
[421887511,1778291439000,-500.0,0.00014911,2]
[421887514,1778291439000,-500.0,0.00014911,2]
[421887510,1778291439000,-500.0,0.00014911,2]
[421887508,1778291439000,-543.81295993,0.00014911,2]
[421887513,1778291439000,-500.0,0.00014911,2]
[421887543,1778291439000,-311.2013994,0.00015186,2]
[421887519,1778291439000,-500.0,0.00014924,2]
[421887520,1778291439000,-390.18383689,0.00014924,2]
[421887528,1778291439000,-179.33319266,0.00015,2]
[421887521,1778291439000,-500.0,0.00014924,2]
[421887523,1778291439000,-500.0,0.00014924,2]
[421887522,1778291439000,-500.0,0.00014924,2]
[421887526,1778291439000,-161.58879827,0.00014931,2]
[421887524,1778291439000,-500.0,0.00014924,2]
[421887529,1778291439000,-800.0,0.00015,2]
[421887533,1778291439000,-500.0,0.00015184,2]
[421887530,1778291439000,-159.526673,0.00015068,2]
[421887531,1778291439000,-500.0,0.00015184,2]
[421887527,1778291439000,-600.0,0.00014943,2]
[421887525,1778291439000,-160.0,0.00014931,2]
[421887512,1778291439000,-500.0,0.00014911,2]
[421887565,1778291440000,-507.07110326,0.00015459,2]
[421887559,1778291440000,-3220.11241497,0.0001536,2]
[421887560,1778291440000,-63236.89565657,0.0001536,2]
[421887572,1778291440000,-500.0,0.00015472,2]
[421887573,1778291440000,-500.0,0.00015472,2]
[421887562,1778291440000,-500.0,0.00015458,2]
[421887571,1778291440000,-510.53067358,0.0001546,2]
[421887569,1778291440000,-500.0,0.00015459,2]
[421887566,1778291440000,-500.0,0.00015459,2]
[421887567,1778291440000,-500.0,0.00015459,2]
[421887568,1778291440000,-500.0,0.00015459,2]
[421887563,1778291440000,-509.29360388,0.00015458,2]
[421887574,1778291440000,-500.0,0.00015472,2]
[421887561,1778291440000,-500.0,0.00015458,2]
[421887570,1778291440000,-500.0,0.0001546,2]
[421887575,1778291440000,-500.0,0.00015472,2]
[421887576,1778291440000,-500.0,0.00015472,2]
[421887578,1778291440000,-8950.05863081,0.00015634,2]
[421887577,1778291440000,-200.0,0.00015562,3]
[421887564,1778291440000,-500.0,0.00015459,2]
[421887592,1778291446000,-7160.99862156,0.00015634,2]
[421887589,1778291446000,-903.26236553,0.00015478,2]
[421887590,1778291446000,-272.47525363,0.00015478,2]
[421887593,1778291446000,-16902.48709723,0.00015634,2]
[421887595,1778291446000,-4574.14783359,0.00015634,2]
[421887594,1778291446000,-10412.76468092,0.00015634,2]
[421887591,1778291446000,-126.30144993,0.00015634,2]
[421887684,1778292632000,-300.0,0.00012268,2]
[421887686,1778292632000,-300.0,0.00012268,2]
[421887674,1778292632000,-840.66588958,9.146e-05,2]
[421887691,1778292632000,-500.0,0.0001227,2]
[421887694,1778292632000,-500.0,0.0001227,2]
[421887682,1778292632000,-258.93716177,0.00011713,2]
[421887680,1778292632000,-564.90970434,0.0001,2]
[421887676,1778292632000,-168.52729181,9.425e-05,2]
[421887672,1778292632000,-724.50467201,9.055e-05,2]
[421887669,1778292632000,-446.37484045,9.055e-05,2]
[421887667,1778292632000,-1905.92221814,9.055e-05,2]
[421887664,1778292632000,-670.21001113,9.055e-05,2]
[421887688,1778292632000,-1200.0,0.00012268,2]
[421887678,1778292632000,-219.43827269,9.713e-05,2]
[421887696,1778292632000,-500.0,0.0001227,2]
[421887712,1778292632000,-2987.0388935,0.00013699,2]
[421887702,1778292632000,-266.61628248,0.0001227,2]
[421887732,1778292632000,-270.77580248,0.00014336,2]
[421887721,1778292632000,-298.43605086,0.00013713,2]
[421887718,1778292632000,-167.85923384,0.00013705,2]
[421887723,1778292632000,-171.7491671,0.00013778,14]
[421887699,1778292632000,-500.0,0.0001227,2]
[421887731,1778292632000,-295.97008221,0.00014336,2]
[421887715,1778292632000,-1000.0,0.00013699,2]
[421887730,1778292632000,-160.0,0.00014287,2]
[421887727,1778292632000,-160.0,0.00014215,2]
[421887725,1778292632000,-163.79362894,0.00013973,2]
[421887710,1778292632000,-2186.3659716,0.00013699,2]
[421887707,1778292632000,-1000.0,0.00013699,2]
[421887704,1778292632000,-301.0,0.00013464,2]
[421887729,1778292632000,-161.58879827,0.00014215,2]
[421887761,1778292641000,-500.0,0.00014363,2]
[421887758,1778292641000,-160.92900721,0.00014338,2]
[421887762,1778292641000,-621.3339381,0.00014363,2]
[421887763,1778292641000,-370.99754134,0.00014363,2]
[421887760,1778292641000,-513.59277781,0.00014363,2]
[421887757,1778292641000,-840.9446594,0.00014336,2]
[421887764,1778292641000,-238.45132673,0.00014363,2]
[421887765,1778292641000,-261.54867327,0.00014363,2]
[421887759,1778292641000,-500.0,0.00014363,2]
[421887768,1778292641000,-530.20339953,0.00014363,2]
[421887767,1778292641000,-455.62777401,0.00014363,2]
[421887766,1778292641000,-61.1016315,0.00014363,2]
[421887784,1778292642000,-500.0,0.00014436,2]
[421887774,1778292642000,-500.0,0.00014364,2]
[421887779,1778292642000,-500.0,0.00014365,2]
[421887785,1778292642000,-500.0,0.00014436,2]
[421887777,1778292642000,-506.6215998,0.00014365,2]
[421887775,1778292642000,-500.0,0.00014364,2]
[421887776,1778292642000,-500.0,0.00014364,2]
[421887780,1778292642000,-361.37,0.00014365,2]
[421887778,1778292642000,-500.19766253,0.00014365,2]
[421887772,1778292642000,-804.19,0.00014364,2]
[421887782,1778292642000,-5012.93922749,0.00014365,2]
[421887773,1778292642000,-500.0,0.00014364,2]
[421887769,1778292642000,-500.0,0.00014363,2]
[421887771,1778292642000,-500.0,0.00014364,2]
[421887770,1778292642000,-500.0,0.00014364,2]
[421887783,1778292642000,-500.0,0.00014436,2]
[421887786,1778292642000,-500.0,0.00014436,2]
[421887798,1778292642000,-500.0,0.00014436,2]
[421887789,1778292642000,-500.0,0.00014436,2]
[421887788,1778292642000,-500.0,0.00014436,2]
[421887804,1778292642000,-645.68277805,0.00014437,2]
[421887802,1778292642000,-1891.49214068,0.00014437,2]
[421887801,1778292642000,-500.0,0.00014436,2]
[421887800,1778292642000,-500.0,0.00014436,2]
[421887799,1778292642000,-577.8173214,0.00014436,2]
[421887795,1778292642000,-514.87078183,0.00014436,2]
[421887803,1778292642000,-439.26104322,0.00014437,2]
[421887794,1778292642000,-500.0,0.00014436,2]
[421887793,1778292642000,-500.0,0.00014436,2]
[421887792,1778292642000,-500.0,0.00014436,2]
[421887791,1778292642000,-500.0,0.00014436,2]
[421887790,1778292642000,-500.0,0.00014436,2]
[421887787,1778292642000,-500.0,0.00014436,2]
[421887797,1778292642000,-500.0,0.00014436,2]
[421887796,1778292642000,-500.0,0.00014436,2]
[421887819,1778292643000,-3951.26353864,0.00014437,2]
[421887820,1778292643000,-3881.22301545,0.00014437,2]
[421887825,1778292646000,-500.0,0.00014363,2]
[421887826,1778292646000,-8576.57363579,0.00014437,2]
[421887828,1778292646000,-360.69996,0.00014437,2]
[421887827,1778292646000,-48446.19323464,0.00014437,2]
[421887875,1778293832000,-64.85635424,0.0001261,2]
[421887863,1778293832000,-5000.0,0.00011861,2]
[421887866,1778293832000,-1215.95936447,0.00011981,2]
[421887865,1778293832000,-304.29413525,0.00011981,2]
[421887868,1778293832000,-210.39639517,0.00012548,2]
[421887870,1778293832000,-300.0,0.0001261,2]
[421887872,1778293832000,-1135.14364576,0.0001261,2]
[421887877,1778293832000,-193.55597513,0.00012611,2]
[421887892,1778293832000,-167.85923385,0.00013829,2]
[421887881,1778293832000,-1288.09778229,0.00012611,2]
[421887886,1778293832000,-1832.89775811,0.00012611,2]
[421887888,1778293832000,-1000.0,0.00013699,2]
[421887890,1778293832000,-1000.0,0.00013699,2]
[421887894,1778293832000,-160.0,0.00013874,2]
[421887895,1778293832000,-161.5993154,0.00013874,2]
[421887899,1778293832000,-242.59050977,0.00014175,2]
[421887897,1778293832000,-160.0,0.00013874,2]
[421887879,1778293832000,-587.47393989,0.00012611,2]
[421887950,1778293838000,-500.0,0.00014363,2]
[421887945,1778293838000,-501.88772734,0.00014362,2]
[421887946,1778293838000,-501.67683088,0.00014362,2]
[421887948,1778293838000,-500.0,0.00014363,2]
[421887943,1778293838000,-801.16184485,0.00014264,2]
[421887940,1778293838000,-304.1953475,0.00014263,2]
[421887941,1778293838000,-500.0,0.00014263,2]
[421887944,1778293838000,-801.26604153,0.00014264,2]
[421887938,1778293838000,-2207.90019825,0.00014175,2]
[421887951,1778293838000,-854.02,0.00014363,2]
[421887942,1778293838000,-500.0,0.00014263,2]
[421887949,1778293838000,-500.0,0.00014363,2]
[421887939,1778293838000,-195.8046525,0.00014263,2]
[421887954,1778293838000,-500.0,0.00014363,2]
[421887947,1778293838000,-500.0,0.00014362,2]
[421887961,1778293838000,-502.32332276,0.00014364,2]
[421887962,1778293838000,-503.8568238,0.00014364,2]
[421887959,1778293838000,-504.84703877,0.00014364,2]
[421887960,1778293838000,-500.0,0.00014364,2]
[421887964,1778293838000,-501.34265971,0.00014364,2]
[421887963,1778293838000,-501.24660621,0.00014364,2]
[421887957,1778293838000,-501.64646397,0.00014364,2]
[421887956,1778293838000,-500.0,0.00014364,2]
[421887952,1778293838000,-500.0,0.00014363,2]
[421887955,1778293838000,-500.0,0.00014363,2]
[421887953,1778293838000,-500.0,0.00014363,2]
[421887958,1778293838000,-500.0,0.00014364,2]
[421888009,1778293839000,-501.74953079,0.00014364,2]
[421888011,1778293839000,-502.66011918,0.00014364,2]
[421888006,1778293839000,-160.30753987,0.00014364,2]
[421888007,1778293839000,-500.5683535,0.00014364,2]
[421888010,1778293839000,-500.8128033,0.00014364,2]
[421888008,1778293839000,-169.25108466,0.00014364,2]
[421887999,1778293839000,-500.94840726,0.00014364,2]
[421888003,1778293839000,-501.09413994,0.00014364,2]
[421888002,1778293839000,-502.63606499,0.00014364,2]
[421888001,1778293839000,-502.10703119,0.00014364,2]
[421888013,1778293839000,-249.8295474,0.00014364,2]
[421888005,1778293839000,-500.0,0.00014364,2]
[421888004,1778293839000,-502.50467274,0.00014364,2]
[421888015,1778293839000,-502.21625627,0.00014364,2]
[421888019,1778293839000,-501.94794704,0.00014364,2]
[421888016,1778293839000,-501.92659936,0.00014364,2]
[421888012,1778293839000,-500.32581603,0.00014364,2]
[421888018,1778293839000,-501.86349556,0.00014364,2]
[421888017,1778293839000,-501.58444041,0.00014364,2]
[421888000,1778293839000,-502.53069353,0.00014364,2]
[421888023,1778293839000,-501.62902067,0.00014364,2]
[421888020,1778293839000,-500.0,0.00014364,2]
[421888022,1778293839000,-629.49277009,0.00014364,2]
[421888021,1778293839000,-501.39536862,0.00014364,2]
[421888024,1778293839000,-500.0,0.00014364,2]
[421888026,1778293839000,-210.99608414,0.00014364,2]
[421888025,1778293839000,-501.29514983,0.00014364,2]
[421888027,1778293839000,-500.90944675,0.00014364,2]
[421888028,1778293839000,-557.4640552,0.00014364,2]
[421888014,1778293839000,-502.587608,0.00014364,2]
[421887998,1778293839000,-502.31778327,0.00014364,2]
[421887991,1778293839000,-502.08434281,0.00014364,2]
[421887993,1778293839000,-500.6919314,0.00014364,2]
[421888029,1778293839000,-502.2960513,0.00014364,2]
[421887965,1778293839000,-500.27157222,0.00014364,2]
[421887968,1778293839000,-500.26685562,0.00014364,2]
[421887967,1778293839000,-495.85648413,0.00014364,2]
[421887969,1778293839000,-502.15601769,0.00014364,2]
[421887966,1778293839000,-220.82490995,0.00014364,2]
[421887971,1778293839000,-500.0,0.00014364,2]
[421887972,1778293839000,-500.3783416,0.00014364,2]
[421887974,1778293839000,-502.37776257,0.00014364,2]
[421887977,1778293839000,-501.53151955,0.00014364,2]
[421887976,1778293839000,-503.20280942,0.00014364,2]
[421887978,1778293839000,-501.33892175,0.00014364,2]
[421887975,1778293839000,-502.71005177,0.00014364,2]
[421887973,1778293839000,-501.55221053,0.00014364,2]
[421887994,1778293839000,-501.68011786,0.00014364,2]
[421887979,1778293839000,-236.69816709,0.00014364,2]
[421887981,1778293839000,-524.45145591,0.00014364,2]
[421887980,1778293839000,-549.12973284,0.00014364,2]
[421887983,1778293839000,-500.0,0.00014364,2]
[421887984,1778293839000,-502.94023959,0.00014364,2]
[421887985,1778293839000,-501.49739403,0.00014364,2]
[421887988,1778293839000,-501.82914245,0.00014364,2]
[421887986,1778293839000,-501.95536214,0.00014364,2]
[421887987,1778293839000,-501.73364069,0.00014364,2]
[421887990,1778293839000,-500.0,0.00014364,2]
[421887989,1778293839000,-193.13175497,0.00014364,2]
[421887992,1778293839000,-500.0,0.00014364,2]
[421887997,1778293839000,-500.56123672,0.00014364,2]
[421887995,1778293839000,-503.32208083,0.00014364,2]
[421887996,1778293839000,-500.0,0.00014364,2]
[421887982,1778293839000,-515.99421327,0.00014364,2]
[421888031,1778293839000,-500.0,0.00014364,2]
[421887970,1778293839000,-482.69866283,0.00014364,2]
[421888035,1778293839000,-501.48280301,0.00014365,2]
[421888066,1778293839000,-500.0,0.00014638,2]
[421888067,1778293839000,-500.0,0.00014638,2]
[421888069,1778293839000,-151.0,0.00014638,2]
[421888071,1778293839000,-237.60781754,0.00014638,2]
[421888072,1778293839000,-261.08665199,0.00014638,2]
[421888074,1778293839000,-500.0,0.00014638,2]
[421888073,1778293839000,-500.0,0.00014638,2]